fUST/lending_fUST_20260429
["ID","MTS","AMOUNT","RATE_DAILY","PERIOD"]
[421336643,1777461792000,-500.0,7.604e-05,2]
[421336654,1777461792000,-500.0,7.604e-05,2]
[421336653,1777461792000,-500.0,7.604e-05,2]
[421336652,1777461792000,-500.0,7.604e-05,2]
[421336642,1777461792000,-500.0,7.604e-05,2]
[421336651,1777461792000,-500.0,7.604e-05,2]
[421336649,1777461792000,-500.0,7.604e-05,2]
[421336648,1777461792000,-500.0,7.604e-05,2]
[421336647,1777461792000,-500.0,7.604e-05,2]
[421336644,1777461792000,-500.0,7.604e-05,2]
[421336646,1777461792000,-500.0,7.604e-05,2]
[421336645,1777461792000,-500.0,7.604e-05,2]
[421336650,1777461792000,-500.0,7.604e-05,2]
[421336658,1777461818000,-500.0,7.604e-05,2]
[421336657,1777461818000,-172.88518962,7.604e-05,2]
[421336659,1777461818000,-500.0,7.604e-05,2]
[421336661,1777461818000,-500.0,7.604e-05,2]
[421336662,1777461818000,-500.0,7.604e-05,2]
[421336660,1777461818000,-500.0,7.604e-05,2]
[421336665,1777461818000,-596.98233424,7.604e-05,2]
[421336669,1777461818000,-480.96148692,7.604e-05,2]
[421336667,1777461818000,-500.0,7.604e-05,2]
[421336663,1777461818000,-500.0,7.604e-05,2]
[421336666,1777461818000,-500.0,7.604e-05,2]
[421336664,1777461818000,-500.0,7.604e-05,2]
[421336668,1777461818000,-500.0,7.604e-05,2]
[421336677,1777461819000,-249.17098922,7.604e-05,2]
[421336676,1777461819000,-500.0,7.604e-05,2]
[421336675,1777461819000,-500.0,7.604e-05,2]
[421336674,1777461819000,-500.0,7.604e-05,2]
[421336672,1777461819000,-500.0,7.604e-05,2]
[421336673,1777461819000,-500.0,7.604e-05,2]
[421336670,1777461819000,-500.0,7.604e-05,2]
[421336671,1777461819000,-500.0,7.604e-05,2]
[421336682,1777461843000,-9890.14535978,7.605e-05,2]
[421336681,1777461843000,-300.0,7.604e-05,2]
[421336680,1777461843000,-300.0,7.604e-05,2]
[421336678,1777461843000,-326.85464022,7.604e-05,2]
[421336679,1777461843000,-527.0,7.604e-05,2]
[421336686,1777461874000,-8140.0,7.605e-05,2]
[421336685,1777461874000,-741.0,7.604e-05,2]
[421336688,1777461899000,-4373.0,7.604e-05,2]
[421336687,1777461899000,-5000.0,7.529e-05,2]
[421336690,1777461934000,-2646.45751752,7.527e-05,2]
[421336689,1777461934000,-5000.0,7.452e-05,2]
[421336821,1777462240000,-500.0,7.602e-05,2]
[421336822,1777462240000,-500.0,7.602e-05,2]
[421336819,1777462240000,-500.0,7.602e-05,2]
[421336827,1777462240000,-500.0,7.602e-05,2]
[421336829,1777462240000,-500.0,7.602e-05,2]
[421336826,1777462240000,-500.0,7.602e-05,2]
[421336828,1777462240000,-500.0,7.602e-05,2]
[421336823,1777462240000,-500.0,7.602e-05,2]
[421336824,1777462240000,-500.0,7.602e-05,2]
[421336825,1777462240000,-500.0,7.602e-05,2]
[421336837,1777462240000,-500.0,7.602e-05,2]
[421336831,1777462240000,-500.0,7.602e-05,2]
[421336842,1777462240000,-500.0,7.602e-05,2]
[421336830,1777462240000,-500.0,7.602e-05,2]
[421336832,1777462240000,-500.0,7.602e-05,2]
[421336834,1777462240000,-500.0,7.602e-05,2]
[421336833,1777462240000,-500.0,7.602e-05,2]
[421336838,1777462240000,-500.0,7.602e-05,2]
[421336835,1777462240000,-500.0,7.602e-05,2]
[421336820,1777462240000,-344.0178321,7.602e-05,2]
[421336839,1777462240000,-500.0,7.602e-05,2]
[421336841,1777462240000,-500.0,7.602e-05,2]
[421336818,1777462240000,-500.0,7.602e-05,2]
[421336817,1777462240000,-500.0,7.602e-05,2]
[421336811,1777462240000,-500.0,7.602e-05,2]
[421336792,1777462240000,-1200.0,7.525e-05,2]
[421336794,1777462240000,-3577.4460617,7.526e-05,2]
[421336795,1777462240000,-329.49702982,7.564e-05,2]
[421336797,1777462240000,-300.0,7.601e-05,2]
[421336793,1777462240000,-526.0,7.525e-05,2]
[421336798,1777462240000,-300.0,7.601e-05,2]
[421336799,1777462240000,-300.0,7.601e-05,2]
[421336800,1777462240000,-300.0,7.601e-05,2]
[421336803,1777462240000,-500.0,7.602e-05,2]
[421336804,1777462240000,-500.0,7.602e-05,2]
[421336806,1777462240000,-248.09614869,7.602e-05,2]
[421336816,1777462240000,-500.0,7.602e-05,2]
[421336836,1777462240000,-500.0,7.602e-05,2]
[421336807,1777462240000,-500.0,7.602e-05,2]
[421336805,1777462240000,-500.0,7.602e-05,2]
[421336813,1777462240000,-500.0,7.602e-05,2]
[421336809,1777462240000,-500.0,7.602e-05,2]
[421336808,1777462240000,-500.0,7.602e-05,2]
[421336814,1777462240000,-500.0,7.602e-05,2]
[421336812,1777462240000,-500.0,7.602e-05,2]
[421336815,1777462240000,-500.0,7.602e-05,2]
[421336810,1777462240000,-500.0,7.602e-05,2]
[421336840,1777462240000,-500.0,7.602e-05,2]
[421336802,1777462240000,-220.70125309,7.602e-05,2]
[421336854,1777462240000,-300.0,7.605e-05,2]
[421336877,1777462240000,-378.06689259,8.551e-05,2]
[421336872,1777462240000,-420.0,8.361e-05,2]
[421336875,1777462240000,-420.0,8.361e-05,2]
[421336878,1777462240000,-343.19218542,8.551e-05,2]
[421336874,1777462240000,-420.0,8.361e-05,2]
[421336876,1777462240000,-500.0,8.493e-05,2]
[421336873,1777462240000,-420.0,8.361e-05,2]
[421336880,1777462240000,-110155.98342756,8.552e-05,2]
[421336890,1777462240000,-9489.00930144,8.937e-05,2]
[421336882,1777462240000,-600.0,8.56e-05,2]
[421336869,1777462240000,-500.0,7.605e-05,2]
[421336891,1777462240000,-440.90148206,8.937e-05,2]
[421336884,1777462240000,-151.0,8.654e-05,2]
[421336887,1777462240000,-7547.55813953,8.767e-05,2]
[421336885,1777462240000,-500.0,8.767e-05,2]
[421336888,1777462240000,-150.6421436,8.874e-05,2]
[421336889,1777462240000,-1458.8156887,8.937e-05,2]
[421336886,1777462240000,-7452.44186047,8.767e-05,2]
[421336892,1777462240000,-206.90851794,9.041e-05,2]
[421336893,1777462240000,-293.09148206,9.041e-05,2]
[421336894,1777462240000,-931.7672282,9.105e-05,2]
[421336844,1777462240000,-608.36301245,7.602e-05,2]
[421336879,1777462240000,-152.0,8.552e-05,2]
[421336871,1777462240000,-1680.0,8.278e-05,2]
[421336796,1777462240000,-300.0,7.601e-05,2]
[421336870,1777462240000,-500.0,8.219e-05,2]
[421336845,1777462240000,-500.0,7.602e-05,2]
[421336847,1777462240000,-500.0,7.602e-05,2]
[421336843,1777462240000,-500.0,7.602e-05,2]
[421336846,1777462240000,-500.0,7.602e-05,2]
[421336852,1777462240000,-500.0,7.602e-05,2]
[421336848,1777462240000,-500.0,7.602e-05,2]
[421336851,1777462240000,-600.0,7.602e-05,2]
[421336849,1777462240000,-500.0,7.602e-05,2]
[421336868,1777462240000,-300.0,7.605e-05,2]
[421336853,1777462240000,-50000.0,7.603e-05,2]
[421336850,1777462240000,-500.0,7.602e-05,2]
[421336856,1777462240000,-300.0,7.605e-05,2]
[421336866,1777462240000,-300.0,7.605e-05,2]
[421336864,1777462240000,-300.0,7.605e-05,2]
[421336858,1777462240000,-300.0,7.605e-05,2]
[421336861,1777462240000,-300.0,7.605e-05,2]
[421336857,1777462240000,-300.0,7.605e-05,2]
[421336855,1777462240000,-300.0,7.605e-05,2]
[421336859,1777462240000,-300.0,7.605e-05,2]
[421336860,1777462240000,-300.0,7.605e-05,2]
[421336862,1777462240000,-300.0,7.605e-05,2]
[421336863,1777462240000,-300.0,7.605e-05,2]
[421336865,1777462240000,-300.0,7.605e-05,2]
[421336867,1777462240000,-300.0,7.605e-05,2]
[421336900,1777462241000,-155.0,9.203e-05,2]
[421336895,1777462241000,-1419.2327718,9.105e-05,2]
[421336898,1777462241000,-420.0,9.197e-05,2]
[421336902,1777462241000,-714.3073201,9.203e-05,2]
[421336901,1777462241000,-4346.0672282,9.203e-05,2]
[421336899,1777462241000,-587.0,9.197e-05,2]
[421336896,1777462241000,-587.0,9.197e-05,2]
[421336897,1777462241000,-273.0,9.197e-05,2]
[421336914,1777462243000,-15194.27781791,7.6e-05,2]
[421336916,1777462243000,-274.84563953,9.315e-05,2]
[421336920,1777462243000,-28146.41496377,0.0001,2]
[421336915,1777462243000,-1356.6550836,9.203e-05,2]
[421336919,1777462243000,-319.0,9.6e-05,2]
[421336917,1777462243000,-720.0,9.416e-05,2]
[421336921,1777462243000,-1215.81720237,0.0001,2]
[421336918,1777462243000,-388.80649519,9.564e-05,2]
[421336930,1777462247000,-11116.04166623,0.0001,2]
[421336932,1777462247000,-2922.0,0.00010016,2]
[421336931,1777462247000,-15131.06858772,0.0001,2]
[421336936,1777462247000,-500.0,0.00010959,2]
[421336939,1777462247000,-500.0,0.00010959,2]
[421336933,1777462247000,-391.49487911,0.00010345,2]
[421336938,1777462247000,-367.26671693,0.00010959,2]
[421336937,1777462247000,-500.0,0.00010959,2]
[421336934,1777462247000,-864.0,0.00010357,2]
[421336940,1777462247000,-500.0,0.00010959,2]
[421336941,1777462247000,-500.0,0.00010959,2]
[421336943,1777462247000,-500.0,0.00010959,2]
[421336944,1777462247000,-500.0,0.00010959,2]
[421336942,1777462247000,-500.0,0.00010959,2]
[421336945,1777462247000,-500.0,0.00010959,2]
[421336947,1777462247000,-500.0,0.00010959,2]
[421336946,1777462247000,-500.0,0.00010959,2]
[421336948,1777462247000,-214.23624258,0.00010959,2]
[421336935,1777462247000,-500.0,0.00010959,2]
[421337106,1777463438000,-1042.37256033,6.591e-05,2]
[421337108,1777463438000,-515.0,6.658e-05,2]
[421337110,1777463438000,-300.0,6.935e-05,2]
[421337115,1777463438000,-300.0,7.001e-05,2]
[421337111,1777463438000,-300.0,7e-05,2]
[421337107,1777463438000,-3957.62743967,6.591e-05,2]
[421337109,1777463438000,-318.13095932,6.709e-05,2]
[421337113,1777463438000,-300.0,7.001e-05,2]
[421337112,1777463438000,-300.0,7e-05,2]
[421337114,1777463438000,-300.0,7.001e-05,2]
[421337117,1777463438000,-300.0,7.001e-05,2]
[421337116,1777463438000,-300.0,7.001e-05,2]
[421337118,1777463438000,-300.0,7.001e-05,2]
[421337126,1777463439000,-300.0,7.001e-05,2]
[421337124,1777463439000,-300.0,7.001e-05,2]
[421337122,1777463439000,-300.0,7.001e-05,2]
[421337119,1777463439000,-300.0,7.001e-05,2]
[421337120,1777463439000,-300.0,7.001e-05,2]
[421337127,1777463439000,-300.0,7.001e-05,2]
[421337125,1777463439000,-300.0,7.001e-05,2]
[421337128,1777463439000,-4348.24248023,7.001e-05,2]
[421337121,1777463439000,-300.0,7.001e-05,2]
[421337129,1777463439000,-687.89,7.856e-05,2]
[421337123,1777463439000,-300.0,7.001e-05,2]
[421337132,1777463439000,-538.22420357,7.856e-05,2]
[421337130,1777463439000,-500.0,7.856e-05,2]
[421337140,1777463439000,-2942.59355223,7.857e-05,2]
[421337133,1777463439000,-449.55418288,7.856e-05,2]
[421337135,1777463439000,-500.0,7.856e-05,2]
[421337134,1777463439000,-500.0,7.856e-05,2]
[421337139,1777463439000,-18243.57892906,7.857e-05,2]
[421337137,1777463439000,-500.0,7.856e-05,2]
[421337138,1777463439000,-380.9404671,7.856e-05,2]
[421337136,1777463439000,-500.0,7.856e-05,2]
[421337131,1777463439000,-500.0,7.856e-05,2]
[421337150,1777463441000,-459.34763194,7.857e-05,2]
[421337166,1777463443000,-589.83851533,7.857e-05,2]
[421337175,1777463447000,-2666.65431934,7.857e-05,2]
[421337176,1777463447000,-600.0,8.013e-05,2]
[421337179,1777463447000,-240.23452979,8.666e-05,2]
[421337177,1777463447000,-217.6744285,8.219e-05,2]
[421337180,1777463447000,-2423.06941635,8.667e-05,2]
[421337178,1777463447000,-320.53619978,8.666e-05,2]
[421337181,1777463447000,-19301.95059916,8.667e-05,2]
[421337182,1777463447000,-26641.18148409,8.667e-05,2]
[421337193,1777463978000,-4655.99837474,0.0001189,10]
[421337194,1777464058000,-1704.90032371,7.549e-05,2]
[421337195,1777464229000,-1651.55816401,7.474e-05,2]
[421337197,1777464229000,-569.38963267,7.525e-05,2]
[421337196,1777464229000,-525.0,7.474e-05,2]
[421337199,1777464229000,-300.0,7.702e-05,2]
[421337202,1777464229000,-681.40322432,8.5e-05,2]
[421337200,1777464229000,-550.312,8.396e-05,2]
[421337203,1777464229000,-110.56863886,8.5e-05,2]
[421337201,1777464229000,-300.0,8.499e-05,2]
[421337204,1777464229000,-1634.07999155,8.5e-05,2]
[421337198,1777464229000,-311.76834014,7.606e-05,2]
[421337205,1777464230000,-3365.92000845,8.567e-05,2]
[421337207,1777464230000,-5000.0,8.567e-05,2]
[421337208,1777464230000,-5000.0,8.567e-05,2]
[421337206,1777464230000,-5000.0,8.567e-05,2]
[421337210,1777464231000,-5000.0,8.567e-05,2]
[421337211,1777464231000,-5000.0,8.567e-05,2]
[421337209,1777464231000,-5000.0,8.567e-05,2]
[421337212,1777464232000,-5000.0,8.567e-05,2]
[421337213,1777464232000,-5000.0,8.567e-05,2]
[421337215,1777464233000,-5000.0,8.567e-05,2]
[421337214,1777464233000,-5000.0,8.567e-05,2]
[421337218,1777464234000,-5000.0,8.567e-05,2]
[421337217,1777464234000,-5000.0,8.567e-05,2]
[421337216,1777464234000,-5000.0,8.567e-05,2]
[421337221,1777464235000,-5000.0,8.567e-05,2]
[421337220,1777464235000,-5000.0,8.567e-05,2]
[421337219,1777464235000,-5000.0,8.567e-05,2]
[421337222,1777464236000,-5000.0,8.567e-05,2]
[421337223,1777464236000,-5000.0,8.567e-05,2]
[421337224,1777464236000,-5000.0,8.567e-05,2]
[421337227,1777464237000,-5000.0,8.567e-05,2]
[421337226,1777464237000,-5000.0,8.567e-05,2]
[421337225,1777464237000,-5000.0,8.567e-05,2]
[421337230,1777464238000,-5000.0,8.567e-05,2]
[421337229,1777464238000,-5000.0,8.567e-05,2]
[421337228,1777464238000,-5000.0,8.567e-05,2]
[421337232,1777464239000,-5000.0,8.567e-05,2]
[421337231,1777464239000,-5000.0,8.567e-05,2]
[421337233,1777464240000,-5000.0,8.567e-05,2]
[421337234,1777464240000,-5000.0,8.567e-05,2]
[421337235,1777464240000,-5000.0,8.567e-05,2]
[421337237,1777464241000,-5000.0,8.567e-05,2]
[421337236,1777464241000,-5000.0,8.567e-05,2]
[421337239,1777464242000,-5000.0,8.567e-05,2]
[421337238,1777464242000,-5000.0,8.567e-05,2]
[421337242,1777464382000,-4700.0,8.395e-05,2]
[421337241,1777464382000,-300.0,8.394e-05,2]
[421337243,1777464383000,-300.0,8.395e-05,2]
[421337246,1777464383000,-3856.46702667,8.48e-05,2]
[421337245,1777464383000,-305.53297333,8.438e-05,2]
[421337244,1777464383000,-538.0,8.395e-05,2]
[421337250,1777464384000,-1156.76571697,8.767e-05,2]
[421337248,1777464384000,-268.73,8.6e-05,2]
[421337249,1777464384000,-2430.9713097,8.608e-05,2]
[421337247,1777464384000,-1143.53297333,8.48e-05,2]
[421337251,1777464385000,-5000.0,8.767e-05,2]
[421337252,1777464386000,-5000.0,8.767e-05,2]
[421337255,1777464388000,-300.0,9e-05,2]
[421337254,1777464388000,-600.0,8.839e-05,2]
[421337253,1777464388000,-3843.23428303,8.767e-05,2]
[421337346,1777464632000,-520.58013479,8.78e-05,2]
[421337366,1777464637000,-345.82901134,0.000103,2]
[421337360,1777464637000,-4479.41986521,8.78e-05,2]
[421337363,1777464637000,-300.0,8.958e-05,2]
[421337364,1777464637000,-5000.0,8.959e-05,2]
[421337362,1777464637000,-5000.0,8.869e-05,2]
[421337361,1777464637000,-543.0,8.78e-05,2]
[421337365,1777464637000,-300.0,9.289e-05,2]
[421337368,1777464637000,-57791.65926826,0.00011276,2]
[421337367,1777464637000,-360.52890853,0.00010438,2]
[421337383,1777464640000,-217.74575,0.00011276,2]
[421337382,1777464640000,-2333.18114726,0.00011276,2]
[421337381,1777464640000,-7768.6,0.00011276,2]
[421337388,1777464642000,-3166.47645286,0.00011276,2]
[421337389,1777464643000,-1275.38190145,0.00011276,2]
[421337390,1777464643000,-1888.90328211,0.00011276,2]
[421337391,1777464643000,-937.30569134,0.00011276,2]
[421337405,1777464646000,-6970.47222169,0.00011276,2]
[421337404,1777464646000,-4711.44343881,0.00011163,2]
[421337444,1777465306000,-151.06921877,0.00014598,30]
[421337443,1777465306000,-1616.31026041,0.00014499,30]
[421337442,1777465306000,-1616.31026041,0.00014399,14]
[421337441,1777465306000,-1616.31026041,0.00014299,14]
[421337455,1777465481000,-302.13843754,0.00014898,30]
[421337453,1777465481000,-1616.31026041,0.00014698,30]
[421337454,1777465481000,-1616.31026041,0.00014798,30]
[421337452,1777465481000,-1465.24104164,0.00014598,30]
[421337460,1777465486000,-2555.02471799,0.00019,10]
[421337459,1777465486000,-205.0,0.0001836,120]
[421337458,1777465486000,-354.0,0.0001836,120]
[421337457,1777465486000,-571.80345914,0.00017905,21]
[421337456,1777465486000,-1314.17182287,0.00014898,30]
[421337463,1777465500000,-5000.0,0.00019,10]
[421337472,1777465515000,-5000.0,0.00019,10]
[421337476,1777465517000,-226.02471799,0.00019323,120]
[421337475,1777465517000,-205.0,0.00019278,120]
[421337473,1777465517000,-4214.97528201,0.00019,10]
[421337474,1777465517000,-354.0,0.00019278,120]
[421337477,1777465518000,-257.97528201,0.00019323,120]
[421337478,1777465518000,-176.21793479,0.00019897,30]
[421337480,1777465518000,-298.54445397,0.0002,14]
[421337483,1777465518000,-1316.74993826,0.0002,20]
[421337481,1777465518000,-2108.82186729,0.0002,30]
[421337482,1777465518000,-641.69052368,0.0002,10]
[421337479,1777465518000,-200.0,0.0002,10]
[421337485,1777465519000,-4670.92219184,0.0002,20]
[421337484,1777465519000,-329.07780816,0.0002,20]
[421337486,1777465521000,-5000.0,0.0002,20]
[421337488,1777465522000,-5000.0,0.0002,20]
[421337503,1777465657000,-5000.0,0.00014313,14]
[421337504,1777465660000,-1473.02934555,0.00014313,14]
[421337505,1777465660000,-3526.97065445,0.00014423,14]
[421337507,1777465662000,-2053.9413089,0.00014533,14]
[421337506,1777465662000,-2946.0586911,0.00014423,14]
[421337509,1777465663000,-580.91196335,0.00014643,14]
[421337508,1777465663000,-4419.08803665,0.00014533,14]
[421337510,1777465664000,-5000.0,0.00014643,14]
[421337513,1777465666000,-3853.5079498,0.00014753,30]
[421337512,1777465666000,-254.374668,0.00014748,14]
[421337511,1777465666000,-892.1173822,0.00014643,14]
[421337515,1777465667000,-2380.47860425,0.00014864,30]
[421337514,1777465667000,-2619.52139575,0.00014753,30]
[421337518,1777465668000,-907.4492587,0.00014974,30]
[421337517,1777465668000,-4092.5507413,0.00014864,30]
[421337520,1777465670000,-5000.0,0.00014974,30]
[421337521,1777465671000,-565.58008685,0.00014974,30]
[421337569,1777465831000,-2320.00000008,8.091e-05,2]
[421337576,1777465831000,-1109.77247137,8.091e-05,2]
[421337745,1777465838000,-500.0,9.702e-05,2]
[421337753,1777465838000,-603.36701325,9.702e-05,2]
[421337749,1777465838000,-500.0,9.702e-05,2]
[421337754,1777465838000,-500.0,9.702e-05,2]
[421337756,1777465838000,-500.0,9.702e-05,2]
[421337758,1777465838000,-500.0,9.702e-05,2]
[421337760,1777465838000,-500.0,9.702e-05,2]
[421337762,1777465838000,-500.0,9.702e-05,2]
[421337766,1777465838000,-500.0,9.702e-05,2]
[421337773,1777465838000,-500.0,9.702e-05,2]
[421337764,1777465838000,-500.0,9.702e-05,2]
[421337779,1777465838000,-500.0,9.702e-05,2]
[421337780,1777465838000,-500.0,9.702e-05,2]
[421337771,1777465838000,-500.0,9.702e-05,2]
[421337769,1777465838000,-500.0,9.702e-05,2]
[421337775,1777465838000,-500.0,9.702e-05,2]
[421337777,1777465838000,-500.0,9.702e-05,2]
[421337767,1777465838000,-500.0,9.702e-05,2]
[421337747,1777465838000,-500.0,9.702e-05,2]
[421337724,1777465838000,-300.0,8.338e-05,2]
[421337743,1777465838000,-500.0,9.702e-05,2]
[421337782,1777465838000,-500.0,9.702e-05,2]
[421337701,1777465838000,-84.57769684,8.091e-05,2]
[421337703,1777465838000,-435.0,8.091e-05,2]
[421337716,1777465838000,-534.0,8.091e-05,2]
[421337714,1777465838000,-1050.64983171,8.091e-05,2]
[421337720,1777465838000,-3411.88323072,8.173e-05,2]
[421337722,1777465838000,-5000.0,8.256e-05,2]
[421337718,1777465838000,-1588.11676928,8.173e-05,2]
[421337730,1777465838000,-300.0,8.595e-05,2]
[421337732,1777465838000,-5055.10104793,8.767e-05,2]
[421337726,1777465838000,-300.0,8.338e-05,2]
[421337728,1777465838000,-298.7517357,8.382e-05,2]
[421337734,1777465838000,-9944.89895207,8.767e-05,2]
[421337735,1777465838000,-420.0,9.172e-05,2]
[421337739,1777465838000,-500.0,9.702e-05,2]
[421337737,1777465838000,-329.33127076,9.702e-05,2]
[421337741,1777465838000,-423.39035899,9.702e-05,2]
[421337751,1777465838000,-500.0,9.702e-05,2]
[421337786,1777465838000,-500.0,9.702e-05,2]
[421337825,1777465838000,-300.0,9.703e-05,2]
[421337790,1777465838000,-500.0,9.702e-05,2]
[421337833,1777465838000,-300.0,9.703e-05,2]
[421337837,1777465838000,-300.0,9.703e-05,2]
[421337835,1777465838000,-300.0,9.703e-05,2]
[421337847,1777465838000,-300.0,9.703e-05,2]
[421337856,1777465838000,-114449.02590237,9.9e-05,2]
[421337839,1777465838000,-300.0,9.703e-05,2]
[421337841,1777465838000,-300.0,9.703e-05,2]
[421337828,1777465838000,-300.0,9.703e-05,2]
[421337852,1777465838000,-87608.0,9.898e-05,2]
[421337843,1777465838000,-300.0,9.703e-05,2]
[421337845,1777465838000,-300.0,9.703e-05,2]
[421337849,1777465838000,-23818.97226637,9.703e-05,2]
[421337854,1777465838000,-198.60123196,9.899e-05,2]
[421337859,1777465838000,-28662.36803948,9.9e-05,2]
[421337860,1777465838000,-16770.0,9.9e-05,2]
[421337863,1777465838000,-886.0,9.9e-05,2]
[421337851,1777465838000,-2710.0437304,9.707e-05,2]
[421337821,1777465838000,-300.0,9.703e-05,2]
[421337832,1777465838000,-300.0,9.703e-05,2]
[421337823,1777465838000,-300.0,9.703e-05,2]
[421337798,1777465838000,-500.0,9.702e-05,2]
[421337792,1777465838000,-500.0,9.702e-05,2]
[421337794,1777465838000,-500.0,9.702e-05,2]
[421337796,1777465838000,-500.0,9.702e-05,2]
[421337801,1777465838000,-500.0,9.702e-05,2]
[421337788,1777465838000,-500.0,9.702e-05,2]
[421337830,1777465838000,-300.0,9.703e-05,2]
[421337803,1777465838000,-500.0,9.702e-05,2]
[421337807,1777465838000,-500.0,9.702e-05,2]
[421337799,1777465838000,-500.0,9.702e-05,2]
[421337809,1777465838000,-500.0,9.702e-05,2]
[421337811,1777465838000,-500.0,9.702e-05,2]
[421337815,1777465838000,-500.0,9.702e-05,2]
[421337817,1777465838000,-500.0,9.702e-05,2]
[421337819,1777465838000,-340.6788833,9.702e-05,2]
[421337813,1777465838000,-500.0,9.702e-05,2]
[421337826,1777465838000,-300.0,9.703e-05,2]
[421337805,1777465838000,-500.0,9.702e-05,2]
[421337784,1777465838000,-500.0,9.702e-05,2]
[421338110,1777465840000,-1719.26634701,9.9e-05,2]
[421338108,1777465840000,-1023.33199203,9.9e-05,2]
[421338105,1777465840000,-380.36253887,9.9e-05,2]
[421338080,1777465840000,-5276.11361017,9.9e-05,2]
[421338401,1777465843000,-259.14535789,9.9e-05,2]
[421338448,1777465846000,-2138.22490009,9.801e-05,2]
[421338449,1777465846000,-1460.54183613,9.9e-05,2]
[421338453,1777465846000,-14544.4083953,9.9e-05,2]
[421338452,1777465846000,-14772.49423112,9.9e-05,2]
[421338460,1777465877000,-1001.31833637,7.524e-05,2]
[421338469,1777466319000,1000.0,0.00012,120]
[421338504,1777467032000,-3614.14654064,5.537e-05,2]
[421338515,1777467032000,-500.0,5.537e-05,2]
[421338518,1777467032000,-2490.65616125,5.593e-05,2]
[421338516,1777467032000,-1200.0,5.592e-05,2]
[421338526,1777467032000,-155.80135627,5.593e-05,2]
[421338528,1777467032000,-302.31379379,5.621e-05,2]
[421338530,1777467032000,-300.0,5.648e-05,2]
[421338534,1777467032000,-62.66502477,5.648e-05,2]
[421338532,1777467032000,-300.0,5.648e-05,2]
[421338549,1777467032000,-2107.56444073,5.65e-05,2]
[421338513,1777467032000,-1385.85345936,5.537e-05,2]
[421338553,1777467032000,-296.53042962,5.94e-05,2]
[421338551,1777467032000,-203.46957038,5.94e-05,2]
[421338554,1777467032000,-500.0,5.94e-05,2]
[421338556,1777467032000,-318.79840182,5.94e-05,2]
[421338558,1777467032000,-500.0,5.94e-05,2]
[421338560,1777467032000,-310.79520762,5.94e-05,2]
[421338547,1777467032000,-2099.6357245,5.65e-05,2]
[421338545,1777467032000,-792.79983477,5.65e-05,2]
[421338544,1777467032000,-741.0,5.649e-05,2]
[421338542,1777467032000,-300.0,5.649e-05,2]
[421338540,1777467032000,-237.33497523,5.648e-05,2]
[421338767,1777467038000,-500.0,5.94e-05,2]
[421338779,1777467038000,-500.0,5.94e-05,2]
[421338772,1777467038000,-500.0,5.94e-05,2]
[421338775,1777467038000,-500.0,5.94e-05,2]
[421338771,1777467038000,-500.0,5.94e-05,2]
[421338774,1777467038000,-500.0,5.94e-05,2]
[421338770,1777467038000,-500.0,5.94e-05,2]
[421338769,1777467038000,-497.62080214,5.94e-05,2]
[421338768,1777467038000,-500.0,5.94e-05,2]
[421338761,1777467038000,-520.57611346,5.94e-05,2]
[421338760,1777467038000,-500.0,5.94e-05,2]
[421338765,1777467038000,-500.0,5.94e-05,2]
[421338763,1777467038000,-500.0,5.94e-05,2]
[421338762,1777467038000,-500.0,5.94e-05,2]
[421338766,1777467038000,-463.05388026,5.94e-05,2]
[421338757,1777467038000,-189.20479238,5.94e-05,2]
[421338776,1777467038000,-500.0,5.94e-05,2]
[421338759,1777467038000,-500.0,5.94e-05,2]
[421338758,1777467038000,-500.0,5.94e-05,2]
[421338764,1777467038000,-500.0,5.94e-05,2]
[421338778,1777467038000,-500.0,5.94e-05,2]
[421338798,1777467038000,-500.0,5.94e-05,2]
[421338773,1777467038000,-500.0,5.94e-05,2]
[421338799,1777467038000,-17408.19155947,5.941e-05,2]
[421338797,1777467038000,-500.0,5.94e-05,2]
[421338794,1777467038000,-519.14863066,5.94e-05,2]
[421338796,1777467038000,-500.0,5.94e-05,2]
[421338795,1777467038000,-500.0,5.94e-05,2]
[421338793,1777467038000,-500.0,5.94e-05,2]
[421338789,1777467038000,-500.0,5.94e-05,2]
[421338790,1777467038000,-500.0,5.94e-05,2]